[Event "Torneio Nacional Honour 2017-18"]
[Site "Cascais"]
[Date "2018.08.14"]
[Round "5"]
[White "Sa, Claudio Simao Carva"]
[Black "Alves, Fernando"]
[Result "1-0"]
[ECO "C52"]
[WhiteElo "1790"]
[BlackElo "1689"]
[Annotator "NA"]
[PlyCount "57"]
[EventDate "2018.08.11"]
[EventType "tourn"]
[EventCountry "POR"]
[SourceTitle "playchess.com"]
[Source "ChessBase"]
[SourceQuality "1"]
[TimeControl "5400+30"]

1. e4 {[%emt 0:10:31]} e5 {[%emt 0:00:00]} 2. Nf3 {[%emt 0:00:11]} Nc6 {[%emt 0:00:00]} 3. Bc4 {[%emt 0:00:16]} Bc5 {[%emt 0:01:15]} 4. b4 {[%emt 0:02:33]} Bxb4 {[%emt 0:02:20]} 5. c3 {[%emt 0:00:10]} Ba5 {[%emt 0:00:41]} 6. O-O {[%emt 0:01:36]} d6 {[%emt 0:07:09]} 7. d4 {[%emt 0:00:59]} Bb6 {[%emt 0:02:16]} 8. dxe5 {[%emt 0:15:27]} Be6 {[%emt 0:18:23]} 9. Bb5 {[%emt 0:15:30]} h6 {[%emt 0:09:38]} 10. Ba3 {[%emt 0:09:17]} Bc5 {[%emt 0:05:09]} 11. Nd4 {[%emt 0:10:41]} Nge7 {[%emt 0:12:43]} 12. exd6 {[%emt 0:07:57]} Bxd6 {[%emt 0:09:57]} 13. Nxe6 {[%emt 0:04:52]} fxe6 {[%emt 0:00:27]} 14. Qh5+ {[%emt 0:00:10]} g6 {[%emt 0:02:18]} 15. Bxc6+ {[%emt 0:00:45]} bxc6 {[%emt 0:00:16]} 16. Qg4 {[%emt 0:01:21]} Kf7 {[%emt 0:01:47]} 17. Rd1 {[%emt 0:01:22]} e5 {[%emt 0:05:46]} 18. c4 {[%emt 0:00:26]} c5 {[%emt 0:03:46]} 19. Bxc5 {[%emt 0:00:40]} Qb8 {[%emt 0:08:36]} 20. Bxd6 {[%emt 0:01:54]} cxd6 {[%emt 0:00:04]} 21. Nc3 {[%emt 0:00:37]} Qb4 {[%emt 0:03:41]} 22. Nb5 {[%emt 0:01:35]} Rhd8 {[%emt 0:02:55]} 23. Nc7 {[%emt 0:00:55]} Qxc4 {[%emt 0:00:58]} 24. Nxa8 {[%emt 0:00:49]} Qc6 {[%emt 0:00:46]} 25. Rac1 {[%emt 0:00:46]} Qxa8 {[%emt 0:00:42]} 26. Rc7 {[%emt 0:00:31]} Qb8 {[%emt 0:00:36]} 27. Rdc1 {[%emt 0:00:55]} Qb2 {[%emt 0:00:31]} 28. Qf3+ {[%emt 0:01:39]} Ke8 {[%emt 0:00:38]} 29. Qf6 {[%emt 0:00:18]} 1-0

[Event "Torneio Nacional Honour 2017-18"]
[Site "Cascais"]
[Date "2018.08.14"]
[Round "5"]
[White "Santos, Isabel"]
[Black "Guia, Artur Solovyov Eloy"]
[Result "1-0"]
[ECO "E09"]
[WhiteElo "1789"]
[BlackElo "1818"]
[Annotator "NA"]
[PlyCount "53"]
[EventDate "2018.08.11"]
[EventType "tourn"]
[EventCountry "POR"]
[SourceTitle "playchess.com"]
[Source "ChessBase"]
[SourceQuality "1"]
[TimeControl "5400+30"]

1. d4 {[%emt 0:00:00]} d5 {[%emt 0:00:00]} 2. c4 {[%emt 0:00:00]} e6 {[%emt 0:00:00]} 3. Nf3 {[%emt 0:00:00]} Nf6 {[%emt 0:00:00]} 4. g3 {[%emt 0:00:00]} Be7 {[%emt 0:00:30]} 5. Bg2 {[%emt 0:00:00]} O-O {[%emt 0:00:12]} 6. O-O {[%emt 0:00:00]} Nbd7 {[%emt 0:00:15]} 7. Nbd2 {[%emt 0:03:47]} c6 {[%emt 0:00:22]} 8. Qc2 {[%emt 0:00:07]} b6 {[%emt 0:00:51]} 9. e4 {[%emt 0:03:11]} dxe4 {[%emt 0:02:02]} 10. Nxe4 {[%emt 0:00:44]} Bb7 {[%emt 0:00:29]} 11. Ne5 {[%emt 0:20:17]} Qc7 {[%emt 0:01:06]} 12. Bf4 Qc8 {[%emt 0:04:33]} 13. Rfd1 {[%emt 0:11:24]} Nxe4 {[%emt 0:03:08]} 14. Bxe4 {[%emt 0:00:07]} Nf6 {[%emt 0:01:15]} 15. Bg2 {[%emt 0:00:57]} Rd8 {[%emt 0:01:49]} 16. Qb3 {[%emt 0:03:54]} Bd6 {[%emt 0:02:59]} 17. Bg5 {[%emt 0:04:06]} Be7 {[%emt 0:00:16]} 18. Rac1 {[%emt 0:01:28]} h6 {[%emt 0:00:22]} 19. Bf4 {[%emt 0:01:00]} Nh5 {[%emt 0:02:41]} 20. d5 {[%emt 0:06:14]} Nxf4 {[%emt 0:01:38]} 21. gxf4 {[%emt 0:00:06]} exd5 {[%emt 0:01:42]} 22. cxd5 {[%emt 0:00:07]} c5 {[%emt 0:07:10]} 23. d6 {[%emt 0:02:25]} Bxg2 {[%emt 0:00:33]} 24. Qxf7+ {[%emt 0:00:09]} Kh7 {[%emt 0:01:06]} 25. Qg6+ {[%emt 0:01:09]} Kg8 {[%emt 0:00:05]} 26. dxe7 {[%emt 0:00:27]} Rxd1+ {[%emt 0:00:18]} 27. Rxd1 {[%emt 0:00:04]} 1-0

[Event "Torneio Nacional Honour 2017-18"]
[Site "Cascais"]
[Date "2018.08.14"]
[Round "5"]
[White "Santos, Ruben"]
[Black "Santos, Jose Barria"]
[Result "0-1"]
[ECO "E92"]
[WhiteElo "1718"]
[BlackElo "2062"]
[Annotator "NA"]
[PlyCount "52"]
[EventDate "2018.08.11"]
[EventType "tourn"]
[EventCountry "POR"]
[SourceTitle "playchess.com"]
[Source "ChessBase"]
[SourceQuality "1"]
[TimeControl "5400+30"]

1. d4 {[%emt 0:00:00]} Nf6 {[%emt 0:00:00]} 2. c4 {[%emt 0:00:00]} g6 {[%emt 0:00:00]} 3. Nc3 {[%emt 0:00:00]} Bg7 {[%emt 0:00:00]} 4. e4 {[%emt 0:00:00]} d6 {[%emt 0:00:00]} 5. Nf3 {[%emt 0:00:15]} O-O {[%emt 0:00:00]} 6. Be2 {[%emt 0:00:05]} e5 {[%emt 0:00:15]} 7. d5 {[%emt 0:00:02]} a5 {[%emt 0:00:25]} 8. O-O {[%emt 0:00:19]} Nbd7 {[%emt 0:00:53]} 9. Ne1 {[%emt 0:00:05]} Nc5 {[%emt 0:01:12]} 10. f3 {[%emt 0:00:15]} Nfd7 {[%emt 0:02:38]} 11. Be3 {[%emt 0:00:21]} f5 {[%emt 0:02:16]} 12. Nd3 {[%emt 0:01:25]} f4 {[%emt 0:05:02]} 13. Bf2 {[%emt 0:05:13]} g5 {[%emt 0:01:40]} 14. Nb5 {[%emt 0:04:17]} Rf7 {[%emt 0:03:23]} 15. a3 {[%emt 0:16:00]} Bf8 {[%emt 0:11:51]} 16. b4 {[%emt 0:01:35]} Nxd3 {[%emt 0:00:27]} 17. Qxd3 {[%emt 0:00:18]} Rg7 {[%emt 0:05:18]} 18. Rac1 {[%emt 0:03:40]} b6 {[%emt 0:06:03]} 19. c5 {[%emt 0:06:34]} bxc5 {[%emt 0:10:02]} 20. bxc5 {[%emt 0:03:54]} Nxc5 {[%emt 0:08:47]} 21. Bxc5 {[%emt 0:00:13]} dxc5 {[%emt 0:00:03]} 22. d6 {[%emt 0:00:36]} c6 {[%emt 0:01:20]} 23. Nc7 {[%emt 0:01:17]} Rb8 {[%emt 0:10:48]} 24. Rfd1 {[%emt 0:17:51]} Kh8 {[%emt 0:13:49]} 25. Rxc5 {[%emt 0:14:28]} Rxc7 {[%emt 0:02:12]} 26. dxc7 {[%emt 0:01:35]} Bxc5+ {[%emt 0:00:06]} 0-1

[Event "Torneio Nacional Honour 2017-18"]
[Site "Cascais"]
[Date "2018.08.15"]
[Round "6"]
[White "Santos, Jose Barria"]
[Black "Lavrador, Rodolfo M Mascarenh"]
[Result "1-0"]
[ECO "D04"]
[WhiteElo "2062"]
[BlackElo "1859"]
[Annotator "NA"]
[PlyCount "137"]
[EventDate "2018.08.11"]
[EventType "tourn"]
[EventCountry "POR"]
[SourceTitle "playchess.com"]
[Source "ChessBase"]
[SourceQuality "1"]
[TimeControl "5400+30"]

1. Nf3 {[%emt 0:00:00]} d5 {[%emt 0:06:23]} 2. d4 {[%emt 0:00:58]} Nf6 {[%emt 0:01:04]} 3. e3 {[%emt 0:00:24]} Bg4 {[%emt 0:01:11]} 4. Nbd2 {[%emt 0:01:15]} Nbd7 {[%emt 0:00:49] LiveBook: 3 Partien D04: Colle System} (4... e6 5. h3 Bh5 6. c4 c6 7. Qc2 Nbd7 8. b3 Be7 9. Bb2 O-O 10. Bd3 Bg6 11. O-O a5 12. Bxg6 hxg6 {1-0 (39) Drazic,S (2501)-Mastrovasilis,D (2604) Valjevo 2011}) 5. h3 {[%emt 0:02:18]} Bh5 {[%emt 0:00:20]} 6. c3 {[%emt 0:00:04]} e6 {[%emt 0:01:54]} 7. Qb3 {[%emt 0:01:53]} b6 $146 {[%emt 0:04:33]} ({Predecessor:} 7... Rb8 8. Bd3 Be7 9. Qc2 Bg6 10. Bxg6 hxg6 11. e4 dxe4 12. Nxe4 Nxe4 13. Qxe4 {0-1 (37) Soeder,T (2008)-Heinz,T (2054) Bayern 2010}) 8. Bb5 {[%emt 0:02:03]} Bd6 {[%emt 0:09:37]} 9. Bc6 {[%emt 0:04:03]} Rb8 {[%emt 0:02:33]} 10. c4 {[%emt 0:13:45]} Bxf3 {[%emt 0:07:20]} 11. Nxf3 {[%emt 0:00:18]} dxc4 {[%emt 0:00:59]} 12. Qxc4 {[%emt 0:00:09]} Qe7 {[%emt 0:03:41]} 13. O-O {[%emt 0:07:05]} O-O {[%emt 0:00:59]} 14. e4 {[%emt 0:04:03]} e5 {[%emt 0:00:41]} 15. Bg5 {[%emt 0:04:13]} Rbd8 {[%emt 0:02:10]} 16. Rad1 {[%emt 0:04:25]} h6 {[%emt 0:02:27]} 17. Bh4 {[%emt 0:02:49]} Nb8 {[%emt 0:03:27]} 18. Bg3 {[%emt 0:13:03]} Nxc6 {[%emt 0:06:21]} 19. Qxc6 {[%emt 0:00:05]} Nd7 {[%emt 0:02:26]} 20. d5 {[%emt 0:06:24]} f5 {[%emt 0:02:41]} (20... Nc5 $11 {keeps the balance.}) 21. Nh4 {[%emt 0:02:33]} f4 {[%emt 0:06:30]} 22. Ng6 {[%emt 0:00:28]} Qg5 {[%emt 0:00:21]} 23. Nxf8 {[%emt 0:00:13]} Nxf8 {[%emt 0:00:36]} 24. Bh2 {[%emt 0:00:35]} f3 {[%emt 0:01:14]} 25. g3 {[%emt 0:00:30]} Ng6 {[%emt 0:00:24]} 26. Qc3 {[%emt 0:02:31]} Rf8 {[%emt 0:04:40]} 27. Rd3 {[%emt 0:00:32]} Nf4 {[%emt 0:03:23]} 28. Kh1 {[%emt 0:11:26]} Nxd3 {[%emt 0:01:04]} 29. Qxd3 {[%emt 0:00:04] [#]} Qh5 $1 {[%emt 0:00:33]} 30. Rg1 {[%emt 0:05:24]} (30. h4 $142) 30... Bc5 {[%emt 0:07:36]} 31. Qf1 {[%emt 0:02:24]} Bd4 {[%emt 0:01:33]} 32. b3 {[%emt 0:00:56]} (32. g4 $142 Qg6 33. Qd3) 32... Rf6 {[%emt 0:02:23]} (32... Qg6 $17 33. Qd3 c6 34. dxc6 Qxc6) 33. g4 {[%emt 0:03:05]} Qg6 {[%emt 0:00:31]} 34. Qd3 {[%emt 0:02:45]} c6 {[%emt 0:01:07]} 35. dxc6 {[%emt 0:00:05]} Rxc6 {[%emt 0:00:49]} 36. Qxf3 {[%emt 0:00:49]} Rf6 {[%emt 0:00:27]} 37. Qd3 {[%emt 0:00:08]} Rxf2 {[%emt 0:01:16]} 38. Rg2 {[%emt 0:01:55]} Qf6 {[%emt 0:00:31]} 39. Bg3 {[%emt 0:00:57]} Rf3 {[%emt 0:01:36]} 40. Qc4+ {[%emt 0:00:04]} Kh7 {[%emt 0:00:29]} 41. Kh2 {[%emt 0:00:20]} a5 {[%emt 0:02:55]} 42. Rc2 {[%emt 0:00:41]} Rf1 {[%emt 0:02:10]} 43. Qe2 {[%emt 0:00:36]} Ra1 {[%emt 0:04:12]} 44. Rd2 {[%emt 0:01:12]} Qf1 {[%emt 0:00:53]} 45. Qxf1 {[%emt 0:00:03]} Rxf1 {[%emt 0:00:07]} 46. Kg2 {[%emt 0:00:19]} Rf7 {[%emt 0:00:18]} 47. Rc2 {[%emt 0:00:29]} g6 {[%emt 0:00:39]} 48. Rc6 {[%emt 0:00:26]} Re7 {[%emt 0:00:33]} 49. Kf3 {[%emt 0:00:02]} Kg7 {[%emt 0:00:25]} 50. Ke2 $11 {[%emt 0:00:19]} Kf7 {[%emt 0:00:14]} 51. Kd3 {[%emt 0:00:30]} Re6 {[%emt 0:01:29]} 52. Rc7+ {[%emt 0:00:06]} Re7 {[%emt 0:00:17]} 53. Rc8 {[%emt 0:00:42]} g5 {[%emt 0:00:50]} 54. Kc4 {[%emt 0:00:35]} Re6 {[%emt 0:00:38]} 55. Rc7+ {[%emt 0:00:58]} Kf6 {[%emt 0:00:45]} 56. Kd5 {[%emt 0:00:14]} Re8 {[%emt 0:00:23]} 57. Rc6+ {[%emt 0:00:09]} Kg7 {[%emt 0:00:11]} 58. Rc7+ {[%emt 0:01:15]} Kf6 {[%emt 0:00:20]} 59. Rc6+ {[%emt 0:00:19]} Kg7 {[%emt 0:00:09]} 60. Re6 {[%emt 0:01:10]} Rd8+ {[%emt 0:00:11]} 61. Rd6 {[%emt 0:00:46]} Rxd6+ {[%emt 0:01:04]} 62. Kxd6 {[%emt 0:00:05]} Kf6 {[%emt 0:00:06]} 63. a4 {[%emt 0:00:02]} Bc3 {[%emt 0:00:29]} 64. Kd5 {[%emt 0:00:19]} Bd4 {[%emt 0:00:17]} 65. Bh2 {[%emt 0:00:04]} Bc3 {[%emt 0:00:19]} 66. Bg1 {[%emt 0:00:04]} Ke7 {[%emt 0:02:32]} 67. Bxb6 {[%emt 0:00:04]} Kd7 {[%emt 0:00:08]} 68. Bc5 {[%emt 0:00:04]} Bb2 {[%emt 0:00:22]} 69. Bf8 {[%emt 0:00:00]} 1-0

[Event "Torneio Nacional Honour 2017-18"]
[Site "Cascais"]
[Date "2018.08.15"]
[Round "6"]
[White "Horta, Antonio Mauricio Ri"]
[Black "Goncalves, Carlos Manuel M"]
[Result "1-0"]
[ECO "A05"]
[WhiteElo "1950"]
[BlackElo "1645"]
[Annotator "NA"]
[PlyCount "82"]
[EventDate "2018.08.11"]
[EventType "tourn"]
[EventCountry "POR"]
[SourceTitle "playchess.com"]
[Source "ChessBase"]
[SourceQuality "1"]
[TimeControl "5400+30"]

1. Nf3 {[%emt 0:00:00]} Nf6 {[%emt 0:01:54]} 2. d4 {[%emt 0:00:26]} d5 {[%emt 0:01:01]} 3. g3 {[%emt 0:00:14]} g6 {[%emt 0:00:13]} 4. Bg2 {[%emt 0:00:10]} Bg7 {[%emt 0:00:10]} 5. O-O {[%emt 0:00:05]} O-O {[%emt 0:00:08]} 6. c4 {[%emt 0:01:31]} dxc4 {[%emt 0:02:37]} 7. Qc2 {[%emt 0:02:01]} ({Günstiger ist} 7. Na3 $1 $14) 7... Nbd7 {[%emt 0:03:57] D77: Fianchetto Grünfeld: 6 0-0: Replies other than 6...c6} (7... Nc6 8. Qxc4 Be6 9. Qa4 Nd5 10. Nc3 Nb6 11. Qc2 Nxd4 12. Nxd4 Qxd4 13. Bxb7 Rab8 14. Be3 Qe5 15. Bf4 Qa5 {0-1 (26) Jorgensen,B (2274)-Grandelius,N (2642) Denmark 2017}) 8. Na3 {[%emt 0:01:20]} Nb6 {[%emt 0:01:09]} 9. e4 {[%emt 0:04:28]} c6 {[%emt 0:02:29]} 10. Be3 $146 {[%emt 0:04:58]} ({Predecessor:} 10. h3 Be6 11. Be3 Qc8 12. Ng5 Rd8 13. Rac1 Ne8 14. Nxe6 Qxe6 15. e5 Nc7 16. Qe2 Ncd5 17. Bd2 {½-½ (17) Avdeev,A (2167)-Evgrafov,B (2319) ICCF email 2012}) 10... Ng4 {[%emt 0:06:31]} 11. Bg5 {[%emt 0:09:27]} h6 {[%emt 0:01:18]} 12. Bf4 {[%emt 0:00:08]} g5 {[%emt 0:00:32]} 13. Be3 {[%emt 0:04:32]} (13. Bd2 $11 {remains equal.}) 13... Nxe3 {[%emt 0:02:41]} 14. fxe3 {[%emt 0:00:08]} Be6 {[%emt 0:00:43]} 15. Nd2 {[%emt 0:06:48]} Bg4 {[%emt 0:06:52]} 16. Naxc4 {[%emt 0:03:24]} Nxc4 {[%emt 0:00:26]} 17. Nxc4 {[%emt 0:01:22]} Bh5 {[%emt 0:00:59]} 18. Qb3 {[%emt 0:02:28]} Qc7 {[%emt 0:01:25]} 19. Rac1 {[%emt 0:00:40]} a5 {[%emt 0:04:37]} 20. Nb6 {[%emt 0:10:53]} Ra6 {[%emt 0:05:10]} 21. Na4 {[%emt 0:00:22]} b5 {[%emt 0:02:01]} 22. Nc5 {[%emt 0:00:31]} Rb6 {[%emt 0:02:43]} 23. e5 {[%emt 0:06:53]} Be2 {[%emt 0:02:42]} 24. Rf2 {[%emt 0:00:09]} Bc4 {[%emt 0:00:19]} 25. Rxc4 {[%emt 0:02:43]} bxc4 {[%emt 0:00:37]} 26. Qxc4 {[%emt 0:00:02]} e6 {[%emt 0:05:11]} 27. b3 {[%emt 0:02:19]} Ra8 {[%emt 0:05:17]} (27... Qe7 $16 28. Qc3 Rbb8) 28. Rc2 {[%emt 0:01:48]} Rb4 {[%emt 0:04:20]} (28... Bf8 $142) 29. Qd3 {[%emt 0:01:23]} Rb6 {[%emt 0:00:54]} 30. Qe4 {[%emt 0:01:00]} Rab8 $2 {[%emt 0:02:12]} (30... a4 $16) 31. Na4 {[%emt 0:01:30]} Rb4 {[%emt 0:04:20]} 32. Rxc6 {[%emt 0:01:53]} Qe7 {[%emt 0:01:53]} 33. Nc5 {[%emt 0:00:21]} Rd8 {[%emt 0:02:17]} 34. Na6 {[%emt 0:01:51]} Rb5 {[%emt 0:03:21]} 35. Qc2 {[%emt 0:04:59]} g4 {[%emt 0:00:49]} (35... Rb7 $16 {might work better.} 36. Qc3 Ra7) 36. Nc5 {[%emt 0:00:59]} Qg5 {[%emt 0:01:06]} 37. Qe2 {[%emt 0:00:38]} h5 $2 {[%emt 0:01:06]} (37... Rbb8 $1 $14) 38. Ne4 {[%emt 0:01:29]} ({Don't play} 38. Qxb5 Qxe3+ 39. Kh1 Qxd4 $18) 38... Qe7 $2 {[%emt 0:03:26]} 39. Qxb5 {[%emt 0:00:15]} Qg5 40. Qe2 Qh6 41. Qb5 $2 ({Better is} 41. Qf2 $18) 41... Qg5 (41... Qxe3+ 42. Nf2 Qxd4) 1-0

[Event "Torneio Nacional Honour 2017-18"]
[Site "Cascais"]
[Date "2018.08.15"]
[Round "6"]
[White "Godinho Marques, Pedro"]
[Black "Sa, Claudio Simao Carva"]
[Result "1-0"]
[ECO "A80"]
[WhiteElo "1862"]
[BlackElo "1790"]
[Annotator "NA"]
[PlyCount "151"]
[EventDate "2018.08.11"]
[EventType "tourn"]
[EventCountry "POR"]
[SourceTitle "playchess.com"]
[Source "ChessBase"]
[SourceQuality "1"]
[TimeControl "5400+30"]

1. d4 {[%emt 0:00:31]} f5 {[%emt 0:01:58]} 2. Nf3 {[%emt 0:08:23]} Nf6 {[%emt 0:00:56]} 3. Bg5 {[%emt 0:01:29]} e6 {[%emt 0:02:16]} 4. Nbd2 {[%emt 0:01:40] A80: Dutch Defence: Unusual White second moves} Be7 {[%emt 0:05:43]} 5. g3 {[%emt 0:08:20]} b6 {[%emt 0:04:24]} 6. Bg2 {[%emt 0:00:39]} Bb7 {[%emt 0:00:26]} 7. O-O {[%emt 0:00:47]} O-O {[%emt 0:00:16]} 8. Ne5 $146 {[%emt 0:08:32]} ({Predecessor:} 8. c3 h6 9. Bxf6 Bxf6 10. Qc2 d5 11. Ne1 Nd7 12. Nd3 c5 13. dxc5 Nxc5 14. Nxc5 bxc5 15. c4 Qb6 16. cxd5 exd5 {½-½ (66) Wang,C (2529)-Wang,H (2700) Shenzhen 2015}) 8... Bxg2 {[%emt 0:01:48]} 9. Kxg2 {[%emt 0:00:07]} d6 {[%emt 0:00:34]} 10. Nd3 {[%emt 0:04:18]} Nc6 {[%emt 0:08:58]} 11. c3 {[%emt 0:02:54]} e5 {[%emt 0:11:33]} 12. d5 {[%emt 0:13:36]} Nb8 {[%emt 0:16:42]} 13. f3 {[%emt 0:09:02]} Nbd7 {[%emt 0:09:06]} 14. e4 {[%emt 0:03:02]} Nxd5 {[%emt 0:17:23]} 15. Qb3 {[%emt 0:04:50]} Bxg5 {[%emt 0:00:12]} 16. Qxd5+ {[%emt 0:00:23]} Kh8 {[%emt 0:00:19]} 17. f4 {[%emt 0:01:32]} Nf6 {[%emt 0:01:43]} 18. Qc6 {[%emt 0:00:29]} exf4 {[%emt 0:01:19]} 19. Nxf4 {[%emt 0:01:21]} Bxf4 {[%emt 0:06:45]} 20. Rxf4 {[%emt 0:01:28]} Ng4 {[%emt 0:01:17]} 21. Re1 {[%emt 0:02:56]} (21. exf5 $11 {keeps the balance.} Ne5 22. Qd5) 21... Ne5 {[%emt 0:00:44]} 22. Qd5 {[%emt 0:00:48]} c6 {[%emt 0:02:20]} 23. Qd4 {[%emt 0:00:49]} fxe4 {[%emt 0:00:47]} 24. Rfxe4 {[%emt 0:04:24]} (24. Nxe4 $15 Rxf4 25. gxf4) 24... Qf6 {[%emt 0:01:06]} 25. Rf1 {[%emt 0:01:52]} Qg6 {[%emt 0:00:42]} 26. Ref4 {[%emt 0:01:00]} Rxf4 {[%emt 0:01:00]} 27. Rxf4 {[%emt 0:01:21]} Nd3 {[%emt 0:01:12]} (27... Re8 $17 28. Ne4 Nf7) 28. Rg4 {[%emt 0:00:23]} Ne1+ {[%emt 0:00:10]} 29. Kf1 {[%emt 0:00:58]} Nc2 {[%emt 0:01:31]} (29... c5 $1 $11 {remains equal.} 30. Rxg6 cxd4 31. Rxd6 dxc3 32. Kxe1 (32. bxc3 Nc2 $14) 32... cxd2+ 33. Ke2 (33. Rxd2 Re8+ 34. Kd1 Kg8 $11) 33... Re8+ 34. Kxd2 Rf8 $11) 30. Rxg6 $16 {[%emt 0:01:32]} Nxd4 {[%emt 0:00:54]} 31. Rxd6 {[%emt 0:00:19]} Rf8+ {[%emt 0:00:28]} 32. Kg2 {[%emt 0:00:20]} Nf5 {[%emt 0:00:17]} 33. Rxc6 {[%emt 0:00:24]} Ne3+ {[%emt 0:00:38]} 34. Kh3 {[%emt 0:01:33]} h6 {[%emt 0:00:25]} 35. Rc7 {[%emt 0:01:40]} Rf5 {[%emt 0:00:35]} 36. g4 {[%emt 0:03:34]} Rf2 {[%emt 0:00:20]} 37. Rd7 {[%emt 0:00:49]} Rg2 {[%emt 0:00:37]} 38. Nc4 {[%emt 0:02:43]} Re2 {[%emt 0:01:01]} 39. Re7 {[%emt 0:00:14]} Rc2 {[%emt 0:00:31]} 40. Rxe3 {[%emt 0:01:02]} b5 {[%emt 0:00:13]} 41. Na3 {[%emt 0:02:36]} Rxb2 {[%emt 0:00:10]} 42. Re7 {[%emt 0:01:51]} a5 {[%emt 0:00:49]} 43. Ra7 {[%emt 0:00:56]} a4 {[%emt 0:00:45]} 44. Nxb5 {[%emt 0:00:47]} Rxa2 {[%emt 0:00:32]} 45. c4 {[%emt 0:00:22]} Kg8 {[%emt 0:00:15]} 46. c5 {[%emt 0:00:32]} Rc2 {[%emt 0:00:45]} 47. Ra8+ {[%emt 0:00:50]} Kf7 {[%emt 0:00:21]} 48. Nd6+ {[%emt 0:00:30]} Kg6 {[%emt 0:00:33]} 49. Ne4 {[%emt 0:00:59]} Rc4 {[%emt 0:00:14]} 50. Ra6+ {[%emt 0:00:07]} Kh7 {[%emt 0:00:14]} 51. Nd6 {[%emt 0:00:59]} Rc3+ {[%emt 0:00:19]} 52. Kg2 {[%emt 0:00:12]} a3 {[%emt 0:00:18]} 53. c6 {[%emt 0:00:37]} Rc2+ {[%emt 0:00:14]} 54. Kf3 {[%emt 0:00:14]} a2 {[%emt 0:00:41]} 55. Nb5 {[%emt 0:00:24]} Rxc6 {[%emt 0:01:33]} 56. Rxa2 {[%emt 0:00:07]} Rf6+ {[%emt 0:00:20]} 57. Kg3 {[%emt 0:00:11]} Rb6 {[%emt 0:00:08]} 58. Rb2 {[%emt 0:00:21]} Rc6 {[%emt 0:00:21]} 59. Rb3 {[%emt 0:00:09]} Rc4 {[%emt 0:00:14]} 60. Nd6 {[%emt 0:00:14]} Rd4 {[%emt 0:00:15]} 61. Nf5 {[%emt 0:00:20]} Rd7 {[%emt 0:00:23]} 62. Re3 {[%emt 0:00:09]} Kg6 {[%emt 0:00:29]} 63. Kf4 {[%emt 0:00:44]} Ra7 {[%emt 0:00:25]} 64. Re7 {[%emt 0:00:32]} Ra4+ {[%emt 0:00:27]} 65. Kg3 {[%emt 0:00:08]} h5 {[%emt 0:00:52]} 66. Rxg7+ {[%emt 0:01:06]} Kf6 {[%emt 0:00:06]} 67. h3 {[%emt 0:00:16]} Ra3+ {[%emt 0:00:57]} 68. Kh4 {[%emt 0:00:16]} Rd3 {[%emt 0:01:20]} 69. Rb7 {[%emt 0:00:15]} hxg4 {[%emt 0:00:44]} 70. hxg4 {[%emt 0:00:09]} Rd1 {[%emt 0:00:23]} 71. Rb6+ {[%emt 0:00:11]} Kf7 {[%emt 0:00:09]} 72. Kg5 {[%emt 0:00:07]} Rd5 {[%emt 0:00:48]} 73. Rf6+ {[%emt 0:00:13]} Kg8 {[%emt 0:00:24]} 74. Kg6 {[%emt 0:00:00]} Rd8 {[%emt 0:00:00]} 75. Nh6+ {[%emt 0:00:15]} Kh8 {[%emt 0:00:00]} 76. Nf7+ {[%emt 0:00:08]} 1-0

[Event "Torneio Nacional Honour 2017-18"]
[Site "Cascais"]
[Date "2018.08.15"]
[Round "6"]
[White "Guia, Artur Solovyov Eloy"]
[Black "Santos, Ruben Jose Melo"]
[Result "1-0"]
[ECO "C01"]
[WhiteElo "1818"]
[BlackElo "1718"]
[Annotator "NA"]
[PlyCount "107"]
[EventDate "2018.08.11"]
[EventType "tourn"]
[EventCountry "POR"]
[SourceTitle "playchess.com"]
[Source "ChessBase"]
[SourceQuality "1"]
[TimeControl "5400+30"]

1. e4 {[%emt 0:00:00]} e6 {[%emt 0:21:07]} 2. d4 {[%emt 0:00:00]} d5 {[%emt 0:00:02]} 3. exd5 {[%emt 0:00:00]} exd5 {[%emt 0:00:03]} 4. Bd3 {[%emt 0:00:00]} c5 {[%emt 0:00:09]} 5. dxc5 {[%emt 0:01:04]} Bxc5 {[%emt 0:00:05]} 6. Nf3 {[%emt 0:00:13]} Ne7 {[%emt 0:00:11]} 7. O-O {[%emt 0:00:13]} O-O {[%emt 0:00:03]} 8. Nc3 {[%emt 0:02:02]} a6 {[%emt 0:00:37]} 9. Bf4 {[%emt 0:09:37]} Nbc6 {[%emt 0:01:14]} 10. h3 {[%emt 0:03:15]} Nb4 {[%emt 0:02:04]} 11. a3 {[%emt 0:01:38]} Nxd3 {[%emt 0:00:12]} 12. Qxd3 {[%emt 0:00:17]} Bf5 {[%emt 0:00:08]} 13. Qd2 {[%emt 0:00:27]} d4 {[%emt 0:04:40]} 14. Ne2 $1 {[%emt 0:00:58]} d3 {[%emt 0:00:13]} 15. cxd3 {[%emt 0:00:08]} Qxd3 {[%emt 0:00:33]} 16. Rfd1 $11 {[%emt 0:01:56]} Rfd8 {[%emt 0:06:43]} 17. Qxd3 {[%emt 0:00:28]} Rxd3 {[%emt 0:00:03]} 18. Rxd3 {[%emt 0:00:30]} Bxd3 {[%emt 0:00:30]} 19. Nc3 {[%emt 0:00:39]} Ng6 {[%emt 0:00:05]} 20. Bc7 {[%emt 0:00:42]} Rc8 {[%emt 0:03:49]} 21. Bg3 {[%emt 0:00:11]} b5 {[%emt 0:01:19]} 22. Ne5 {[%emt 0:00:34]} Nxe5 {[%emt 0:00:22]} 23. Bxe5 {[%emt 0:00:07]} f6 {[%emt 0:00:35]} 24. Bf4 {[%emt 0:00:59]} Bd4 {[%emt 0:01:13]} 25. Rc1 {[%emt 0:00:51]} g5 {[%emt 0:00:32]} 26. Be3 {[%emt 0:01:06]} Bxe3 {[%emt 0:00:22]} 27. fxe3 {[%emt 0:00:06]} h5 {[%emt 0:00:49]} 28. Rd1 {[%emt 0:00:26]} Bc4 {[%emt 0:07:17]} 29. Rd6 {[%emt 0:00:23]} Kg7 {[%emt 0:00:01]} 30. Rxa6 {[%emt 0:02:06]} b4 {[%emt 0:00:02]} 31. Ra7+ {[%emt 0:00:14]} Kg6 {[%emt 0:00:01]} 32. axb4 {[%emt 0:00:10]} Rb8 {[%emt 0:00:07]} 33. Rd7 {[%emt 0:01:53]} Rxb4 {[%emt 0:00:47]} 34. Rd4 {[%emt 0:00:12]} f5 {[%emt 0:03:11]} 35. b3 {[%emt 0:00:37]} Rxb3 {[%emt 0:00:02]} 36. Rxc4 {[%emt 0:00:07]} g4 {[%emt 0:00:05]} 37. hxg4 {[%emt 0:01:14]} hxg4 {[%emt 0:00:03]} 38. Rc6+ {[%emt 0:00:58]} Kg5 {[%emt 0:00:05]} 39. Nd5 {[%emt 0:00:47]} g3 {[%emt 0:00:40]} 40. Kf1 {[%emt 0:01:21]} Rd3 {[%emt 0:00:32]} 41. Rd6 {[%emt 0:01:47]} Rd2 {[%emt 0:00:03]} 42. Ke1 {[%emt 0:04:15]} Rxg2 {[%emt 0:00:08]} 43. Nf4 {[%emt 0:00:41]} Rh2 {[%emt 0:04:24]} 44. Rg6+ {[%emt 0:34:48]} Kh4 {[%emt 0:00:56]} 45. Rg8 {[%emt 0:04:28]} Rf2 {[%emt 0:04:45]} 46. Rg7 {[%emt 0:02:15]} Rh2 {[%emt 0:00:10]} 47. Ne2 {[%emt 0:10:50]} Rg2 {[%emt 0:10:18]} 48. Kd2 {[%emt 0:03:57]} Rf2 {[%emt 0:00:03]} 49. Kd3 {[%emt 0:00:43]} Rf3 {[%emt 0:00:02]} 50. Kd4 {[%emt 0:01:25]} Rf2 {[%emt 0:07:19]} 51. Nf4 {[%emt 0:03:56]} Rf3 {[%emt 0:02:23]} 52. Ke5 {[%emt 0:01:02]} g2 {[%emt 0:04:11]} 53. Kxf5 Rf1 {[%emt 0:03:46]} 54. Rg4# {[%emt 0:02:03]} 1-0